bitfinex-derivatives/quotes_BNBF0:USTF0_20250425
["timestamp","ask_amount","ask_price","bid_price","bid_amount"]
[1745580680176,1.37384885,605.54,603.72,0.30396713]
[1745580680376,1.37384885,605.53,603.72,0.30396713]
[1745580680576,1.37384885,605.52,603.72,0.30396713]
[1745580680777,2.48721114,605.51,603.73,1.257]
[1745580680970,1.37384885,605.5,603.73,1.257]
[1745580681171,1.37384885,605.49,603.74,0.30392993]
[1745580681374,1.37384885,605.48,603.74,0.30392993]
[1745580681576,2.48721114,605.47,603.74,0.30392993]
[1745580681772,1.37384885,605.46,603.74,0.30392993]
[1745580681976,1.37384885,605.45,603.74,0.30392993]
[1745580682177,2.48721114,605.44,603.75,1.0505215]
[1745580682371,1.37384885,605.43,603.76,0.30392993]
[1745580682575,1.37384885,605.42,603.75,1.0505215]
[1745580682773,1.37384885,605.41,603.76,0.303923]
[1745580682979,1.37384885,605.4,603.76,0.303923]
[1745580683279,1.37384885,605.39,603.76,0.303923]
[1745580683577,2.48721114,605.38,603.76,0.303923]
[1745580683776,1.37384885,605.37,603.76,0.303923]
[1745580683977,2.48721114,605.36,603.76,0.303923]
[1745580684277,1.37384885,605.35,603.76,0.303923]
[1745580684478,1.37384885,605.34,603.85,1.0505215]
[1745580684777,1.37384885,605.33,603.86,0.303923]
[1745580684977,1.37384885,605.32,603.86,0.303923]
[1745580685172,1.37384885,605.31,603.86,0.303923]
[1745580685374,1.37384885,605.3,603.86,0.303923]
[1745580685574,1.37384885,605.29,603.86,0.303923]
[1745580685778,2.48721114,605.28,603.87,0.30384238]
[1745580685975,1.37384885,605.27,603.86,0.30384238]
[1745580686176,2.48721114,605.26,603.86,0.30384238]
[1745580686375,1.37384885,605.25,603.86,0.30384238]
[1745580686575,2.48721114,605.24,603.86,0.30384238]
[1745580686875,1.37317385,605.23,603.86,0.30384238]
[1745580687077,1.11336229,605.24,603.86,0.30384238]
[1745580687078,1.37317385,605.22,603.86,0.30384238]
[1745580687376,2.48644458,605.21,603.87,0.30384238]
[1745580687580,1.37308229,605.2,603.88,0.30384238]
[1745580687780,1.37308229,605.19,603.82,0.30384238]
[1745580687983,1.37308229,605.18,603.83,0.30384238]
[1745580688182,2.48644458,605.17,603.82,0.30384238]
[1745580688482,2.48644458,605.16,603.84,1.353]
[1745580688683,1.37308229,605.15,603.85,0.30384238]
[1745580688884,1.37308229,605.14,603.85,0.30384238]
[1745580689177,1.37288929,605.13,603.85,0.30384238]
[1745580689379,2.48625158,605.12,603.86,0.921]
[1745580689582,2.48625158,605.11,603.87,0.30384238]
[1745580689783,2.48625158,605.1,603.87,0.30384238]
[1745580689982,2.48625158,605.09,603.87,0.30384238]
[1745580690182,1.37288929,605.08,603.87,0.30384238]
[1745580690383,1.37288929,605.07,603.86,0.921]
[1745580690682,1.37288929,605.06,603.87,0.3038544]
[1745580690882,1.37288929,605.05,603.87,0.3038544]
[1745580691083,1.37279447,605.04,603.87,0.3038544]
[1745580691284,2.48615676,605.03,603.87,0.3038544]
[1745580691480,1.37279447,605.02,603.87,0.3038544]
[1745580691682,2.48615676,605.01,603.87,0.3038544]
[1745580691885,2.48615676,605.0,603.87,0.3038544]
[1745580692086,2.48624718,604.99,603.86,0.921]
[1745580692289,1.11336229,604.98,603.87,0.30387709]
[1745580692483,2.48626828,604.97,603.87,0.30387709]
[1745580692683,2.48626828,604.96,603.87,0.30387709]
[1745580692883,2.48626828,604.95,603.87,0.30387709]
[1745580693180,1.37290599,604.94,603.87,0.30387709]
[1745580693383,2.48626828,604.93,603.87,0.30387709]
[1745580693582,2.48626828,604.92,603.86,0.921]
[1745580693882,2.48663607,604.91,603.87,0.30387294]
[1745580694087,1.37327378,604.9,603.87,0.30387294]
[1745580694283,2.48663607,604.89,603.87,0.30387294]
[1745580694487,1.37327378,604.88,603.87,0.30387294]
[1745580694684,1.37327378,604.87,603.87,0.30387294]
[1745580694885,2.48663607,604.86,603.87,0.30387294]
[1745580695090,1.37327378,604.85,603.87,0.30387294]
[1745580695589,1.11336229,604.84,603.87,0.30387294]
[1745580695789,1.37327378,604.83,603.87,0.30387294]
[1745580696090,1.11336229,604.82,603.87,0.30387294]
[1745580696289,1.37327378,604.81,603.87,0.30387294]
[1745580696490,1.11336229,604.8,603.87,0.30387294]
[1745580696686,1.37327378,604.79,603.87,0.30387294]
[1745580696890,1.37327378,604.79,603.86,0.921]
[1745580697190,1.11336229,604.78,603.87,0.30388568]
[1745580697390,1.37327378,604.77,603.87,0.30388568]
[1745580697691,1.37374087,604.76,603.87,0.30388568]
[1745580697892,2.48710316,604.75,603.87,0.30388568]
[1745580698090,1.37374087,604.74,603.87,0.30388568]
[1745580698394,1.11336229,604.73,603.87,0.30388568]
[1745580698690,2.48710316,604.72,603.87,0.30388568]
[1745580698894,0.28791382,605.74,603.87,0.30388568]
[1745580698895,2.48710316,604.71,603.87,0.30388568]
[1745580699091,1.37374087,604.7,603.87,0.30388568]
[1745580699284,1.37374087,604.69,603.87,0.30388568]
[1745580699487,2.48710316,604.68,603.87,0.30388568]
[1745580699687,1.37374087,604.67,603.87,0.30388568]
[1745580699892,2.48699619,604.66,603.87,0.30388568]
[1745580700187,1.11336229,604.66,603.87,0.30388568]
[1745580700592,1.11336229,604.65,603.87,0.30388568]
[1745580700988,1.11336229,604.64,603.87,0.30388568]
[1745580701391,1.11336229,604.63,603.87,0.30388568]
[1745580701893,1.11336229,604.63,603.88,0.30388447]
[1745580702087,1.11336229,604.63,603.87,0.30388447]
[1745580702287,1.11336229,604.62,603.87,0.30388447]
[1745580702793,1.11336229,604.61,603.87,0.30388447]
[1745580703296,1.11336229,604.61,603.86,1.2089174]
[1745580703593,1.11336229,604.6,603.87,0.30386602]
[1745580704094,1.11336229,604.59,603.87,0.30386602]
[1745580704289,1.11336229,604.59,603.84,1.353]
[1745580704290,1.11336229,604.59,603.85,0.30386602]
[1745580704494,1.11336229,604.58,603.86,0.30386602]
[1745580704794,1.11336229,604.57,603.87,0.30386602]
[1745580704994,1.11336229,604.57,603.85,0.30386602]
[1745580705290,1.11336229,604.56,603.86,0.30386602]
[1745580705595,1.11336229,604.55,603.87,0.30386602]
[1745580705788,1.11336229,604.54,603.87,0.30386602]
[1745580706195,1.25820987,606.2,603.87,0.30386602]
[1745580706395,1.37291712,606.19,603.87,0.30386602]
[1745580706695,2.50779812,606.18,603.87,0.30386602]
[1745580706997,1.37291712,606.17,603.87,0.30386602]
[1745580707195,1.37291712,606.16,603.87,0.30386602]
[1745580707495,2.50779812,606.15,603.88,0.30386602]
[1745580707694,1.37291712,606.14,603.85,0.30386602]
[1745580707892,2.50779812,606.13,603.86,0.30386602]
[1745580708094,1.37291712,606.12,603.84,1.353]
[1745580708294,1.37291712,606.11,603.84,1.353]
[1745580708495,1.37291712,606.1,603.86,0.28771744]
[1745580708692,1.37291712,606.09,603.86,0.28771744]
[1745580708896,1.37291712,606.08,603.86,0.28771744]
[1745580709097,1.37291712,606.07,603.87,0.30384535]
[1745580709397,1.37291712,606.06,603.87,0.30384535]
[1745580709600,2.50779812,606.05,603.87,0.30384535]
[1745580709900,2.50779812,606.04,603.88,1.229]
[1745580710099,1.37291712,606.03,603.89,0.30384535]
[1745580710310,1.37291712,606.02,603.9,0.30385396]
[1745580710494,1.37291712,606.01,603.91,0.30385396]
[1745580710698,1.37221793,606.0,603.92,0.30385396]
[1745580710898,2.50709893,605.99,603.89,0.30385396]
[1745580711099,2.50709893,605.98,603.9,0.30385396]
[1745580711399,1.37221793,605.97,603.91,0.30385396]
[1745580711594,1.37221793,605.96,603.92,0.30385396]
[1745580711799,1.37221793,605.95,603.89,0.30385396]
[1745580712095,2.50709893,605.94,603.9,0.30385396]
[1745580712299,1.37221793,605.93,603.89,0.30385396]
[1745580712496,2.50709893,605.92,603.9,0.30385396]
[1745580712696,2.50709893,605.92,603.88,1.229]
[1745580712697,1.37221793,605.91,603.91,0.30385396]
[1745580712896,1.37221793,605.9,603.89,0.30385396]
[1745580713097,1.37221793,605.89,603.88,1.229]
[1745580713394,2.50709893,605.88,603.88,1.229]
[1745580713596,1.37221793,605.87,603.88,1.229]
[1745580713793,2.50709893,605.86,603.88,1.229]
[1745580714098,1.37221793,605.85,603.88,1.229]
[1745580714299,1.37221793,605.84,603.88,1.229]
[1745580714500,2.50709893,605.83,603.88,1.229]
[1745580714798,1.37221793,605.82,603.88,1.229]
[1745580715001,1.37221793,605.81,603.88,1.229]
[1745580715299,1.37221793,605.8,603.88,1.229]
[1745580715500,2.50709893,605.79,603.88,1.229]
[1745580715702,1.37221793,605.78,603.88,1.229]
[1745580715896,1.37221793,605.77,603.88,1.229]
[1745580716101,1.37221793,605.76,603.88,1.229]
[1745580716401,1.37221793,605.75,603.89,1.257]
[1745580716600,1.37221793,605.74,603.89,1.257]
[1745580716801,1.37221793,605.73,603.89,1.257]
[1745580717101,1.37221793,605.72,603.89,1.257]
[1745580717301,2.50709893,605.71,603.89,1.257]
[1745580717502,1.37221793,605.7,603.89,1.257]
[1745580717801,1.37221793,605.69,603.88,0.28781858]
[1745580718001,1.37221793,605.68,603.88,0.28781858]
[1745580718202,1.37221793,605.67,603.88,0.28781858]
[1745580718402,1.37221793,605.66,603.88,0.28781858]
[1745580718603,1.37221793,605.65,603.88,0.28781858]
[1745580718800,1.134881,605.67,603.88,0.28781858]
[1745580718801,2.50709893,605.64,603.88,0.28781858]
[1745580718998,1.37221793,605.63,603.88,0.28781858]
[1745580719201,1.37221793,605.62,603.68,1.0505215]
[1745580719502,2.50709893,605.61,603.88,0.28785429]
[1745580719698,1.37221793,605.6,603.68,1.0505215]
[1745580719902,1.37221793,605.59,603.69,0.30394153]
[1745580720098,1.37221793,605.58,603.69,0.30394153]
[1745580720301,2.50709893,605.57,603.69,0.30394153]
[1745580720504,1.37221793,605.56,603.73,1.0505215]
[1745580720698,2.50709893,605.55,603.74,0.30394153]
[1745580720899,1.37221793,605.54,603.74,0.30394153]
[1745580721197,1.37221793,605.53,603.75,1.39792708]
[1745580721403,1.37221793,605.52,603.76,0.30392708]
[1745580721699,2.50709893,605.51,603.76,0.30392708]
[1745580721904,2.50709893,605.5,603.76,0.30392708]
[1745580722101,1.37221793,605.49,603.76,0.30392708]
[1745580722403,1.37221793,605.48,603.75,1.094]
[1745580722604,1.37221793,605.47,603.76,0.30389411]
[1745580722804,1.3728584,605.46,603.76,1.35289411]
[1745580722999,1.134881,605.49,603.76,1.35289411]
[1745580723000,1.3728584,605.45,603.77,0.30389411]
[1745580723202,2.5077394,605.44,603.77,0.30389411]
[1745580723398,2.5077394,605.43,603.77,1.34789411]
[1745580723603,1.3728584,605.42,603.78,0.30389411]
[1745580723809,1.3728584,605.41,603.78,0.30389411]
[1745580724004,1.3728584,605.4,603.78,0.30389411]
[1745580724200,1.3728584,605.39,603.78,1.38089411]
[1745580724501,1.3728584,605.38,603.79,0.30389411]
[1745580724702,2.5077394,605.37,603.79,0.30389411]
[1745580725003,1.3728584,605.36,603.79,0.30389411]
[1745580725204,2.5077394,605.35,603.79,0.30389411]
[1745580725403,2.5077394,605.34,603.79,0.30389411]
[1745580725599,1.3728584,605.33,603.8,0.30383763]
[1745580725799,2.5077394,605.32,603.81,0.30383763]
[1745580725998,1.3728584,605.31,603.79,0.30383763]
[1745580726200,1.3728584,605.3,603.8,0.30383763]
[1745580726501,1.3728584,605.29,603.81,0.30383763]
[1745580726701,2.5077394,605.28,603.79,0.30383763]
[1745580726901,1.3728584,605.27,603.8,0.30383763]
[1745580727099,1.3728584,605.26,603.78,1.077]
[1745580727304,1.3728584,605.25,603.79,0.30384192]
[1745580727501,2.5077394,605.24,603.79,0.30384192]
[1745580727705,1.3728584,605.23,603.79,0.30384192]
[1745580728002,2.5077394,605.22,603.79,0.30384192]
[1745580728305,1.3728584,605.21,603.79,0.30384192]
[1745580728502,2.5077394,605.2,603.79,0.30384192]
[1745580728707,2.5077394,605.19,603.79,1.0505215]
[1745580728908,1.3728584,605.18,603.8,0.3038887]
[1745580729206,2.5077394,605.17,603.8,0.3038887]
[1745580729405,1.3728584,605.16,603.8,0.3038887]
[1745580729608,1.3728584,605.15,603.8,0.3038887]
[1745580729809,1.3728584,605.14,603.8,0.3038887]
[1745580730109,2.5077394,605.13,603.8,0.3038887]
[1745580730310,1.3728584,605.12,603.8,0.3038887]
[1745580730610,2.5077394,605.11,603.8,0.3038887]
[1745580730910,2.5077394,605.1,603.8,0.3038887]
[1745580731205,2.5077394,605.09,603.8,0.3038887]
[1745580731405,1.3728584,605.08,603.8,0.3038887]
[1745580731609,1.3728584,605.07,603.89,1.0505215]
[1745580731811,2.5077394,605.06,603.89,1.0505215]
[1745580732005,1.37535961,605.05,603.9,0.30389622]
[1745580732209,1.37535961,605.04,603.9,0.30389622]
[1745580732509,1.37535961,605.03,603.9,0.30389622]
[1745580732709,2.51024061,605.02,603.9,0.30389622]
[1745580732911,1.37535961,605.01,603.9,0.30389622]
[1745580733113,2.51024061,605.0,603.9,0.30389622]
[1745580733307,1.37535961,604.99,603.9,0.30389622]
[1745580733511,2.51024061,604.98,603.91,0.30389957]
[1745580733709,1.37535961,604.97,603.89,0.30389957]
[1745580733910,1.37535961,604.96,603.9,0.30389957]
[1745580734208,2.51024061,604.95,603.91,0.30389957]
[1745580734412,1.37535961,604.94,603.89,0.30389957]
[1745580734712,2.51024061,604.93,603.9,0.30389957]
[1745580734912,1.37535961,604.92,603.91,0.30389957]
[1745580735113,2.51024061,604.91,603.91,0.30389957]
[1745580735414,2.51024061,604.9,603.91,0.30389957]
[1745580735606,1.37535961,604.89,603.91,0.30389957]
[1745580735809,1.37535961,604.88,603.9,0.98]
[1745580736009,1.37535961,604.87,603.9,0.98]
[1745580736209,2.51024061,604.86,603.9,0.98]
[1745580736412,1.37535961,604.85,603.9,0.98]
[1745580736609,2.51024061,604.84,603.9,0.98]
[1745580736910,1.37535961,604.83,603.9,0.98]
[1745580737112,2.51024061,604.82,603.9,0.98]
[1745580737315,1.37535961,604.81,603.9,0.98]
[1745580737513,1.37535961,604.8,603.9,0.98]
[1745580737715,1.37535961,604.79,603.91,0.3039062]
[1745580738015,2.51024061,604.78,603.91,0.3039062]
[1745580738213,1.37535961,604.77,603.91,0.3039062]
[1745580738515,1.37535961,604.76,603.91,0.3039062]
[1745580738712,1.37535961,604.75,603.91,0.3039062]
[1745580738916,1.37535961,604.74,603.91,0.3039062]
[1745580739117,1.37535961,604.73,603.91,0.3039062]
[1745580739318,1.37535961,604.72,603.91,0.3039062]
[1745580739514,2.51024061,604.71,603.91,0.3039062]
[1745580739718,1.37535961,604.7,603.91,0.3039062]
[1745580739921,1.37535961,604.69,603.9,0.98]
[1745580740112,1.37535961,604.68,603.91,0.30390477]
[1745580740316,2.51024061,604.67,603.91,0.30390477]
[1745580740518,1.37535961,604.66,603.91,0.30390477]
[1745580740713,2.51024061,604.65,603.9,0.98]
[1745580740914,2.51024061,604.64,603.9,0.98]
[1745580741118,1.134881,604.64,603.9,0.98]
[1745580741415,2.51214665,604.63,603.9,0.98]
[1745580741615,1.3773259,604.62,603.9,1.957]
[1745580741819,2.5122069,604.61,603.9,1.957]
[1745580742122,2.5122069,604.6,603.9,1.957]
[1745580742316,1.3773259,604.59,603.9,1.957]
[1745580742817,1.134881,604.58,603.9,1.957]
[1745580743017,1.3773259,604.57,603.9,1.957]
[1745580743417,1.134881,604.56,603.9,1.957]
[1745580743619,1.3773259,604.55,603.9,1.957]
[1745580744018,1.134881,604.54,603.9,1.957]
[1745580744423,1.134881,604.53,603.9,1.957]
[1745580745023,1.134881,604.52,603.9,1.957]
[1745580745525,1.134881,604.51,603.9,1.957]
[1745580745924,1.134881,604.5,603.9,1.957]
[1745580746325,1.134881,604.49,603.9,1.957]
[1745580747025,1.134881,604.48,603.9,1.957]
[1745580747326,1.134881,604.47,603.9,1.957]
[1745580748026,1.134881,604.46,603.9,1.957]
[1745580748321,1.134881,604.45,603.9,1.957]
[1745580749027,1.134881,604.44,603.9,0.977]
[1745580749728,1.134881,604.43,603.9,0.977]
[1745580750227,1.134881,604.42,603.9,0.977]
[1745580750628,1.134881,604.41,603.9,0.977]
[1745580750927,1.134881,604.4,603.9,0.977]
[1745580752030,1.134881,604.39,603.9,0.977]
[1745580752629,1.25820987,606.63,603.91,0.3038601]
[1745580752822,1.37756483,606.62,603.92,0.30385492]
[1745580753023,1.37756483,606.61,603.91,0.30385492]
[1745580753230,1.37756483,606.6,603.92,0.30385492]
[1745580753526,1.37756483,606.59,603.93,0.30385492]
[1745580753723,2.51632783,606.58,603.91,0.30385492]
[1745580753923,1.37756483,606.57,603.92,0.30385492]
[1745580754123,2.51632783,606.56,603.91,0.30385492]
[1745580754324,2.51632783,606.55,603.9,1.26466512]
[1745580754529,1.37756483,606.54,603.91,0.30383758]
[1745580754730,1.25820987,606.26,603.91,0.30383758]
[1745580754930,1.37756483,606.25,603.91,0.30383758]
[1745580755130,2.51632783,606.24,603.91,0.30383758]
[1745580755425,2.51632783,606.23,603.91,0.30383758]
[1745580755629,2.51632783,606.22,603.91,0.30383758]
[1745580755834,2.51623866,606.21,603.91,0.30383758]
[1745580756131,1.37747566,606.2,603.92,0.30382241]
[1745580756332,1.37747566,606.19,603.91,0.30382241]
[1745580756630,1.37747566,606.19,603.9,0.977]
[1745580756631,1.37747566,606.18,603.92,0.30382241]
[1745580756825,2.51623866,606.17,603.91,0.30382241]
[1745580757031,1.37747566,606.16,603.92,0.30382241]
[1745580757231,1.37747566,606.15,603.93,0.30382241]
[1745580757429,1.37747566,606.14,603.91,0.30382241]
[1745580757630,1.37747566,606.13,603.94,0.30382241]
[1745580757931,1.37747566,606.12,603.95,0.30382241]
[1745580758133,1.25820987,605.95,604.06,1.0505215]
[1745580758331,1.37747566,605.94,604.07,0.30382241]
[1745580758631,1.25820987,605.95,604.07,0.30382241]
[1745580758632,1.37747566,605.93,604.07,0.30382241]
[1745580758834,2.51623866,605.92,604.07,0.30382241]
[1745580759025,1.37747566,605.91,604.07,0.30382241]
[1745580759227,1.37747566,605.9,604.08,0.30381917]
[1745580759431,2.51623866,605.89,604.07,0.30381917]
[1745580759631,2.51623866,605.88,604.08,0.30381917]
[1745580759928,1.37747566,605.87,604.09,0.30381917]
[1745580760127,2.51623866,605.86,604.07,0.30381917]
[1745580760329,1.37747566,605.85,604.07,0.30381917]
[1745580760527,2.51623866,605.84,604.07,0.30381917]
[1745580760728,1.37747566,605.83,604.06,1.0505215]
[1745580761029,1.37747566,605.82,604.07,0.30382011]
[1745580761234,1.37747566,605.81,603.98,0.30382011]
[1745580761427,1.37747566,605.8,603.98,0.30382011]
[1745580761628,1.37747566,605.79,603.98,0.30382011]
[1745580761829,2.51623866,605.78,603.98,0.30382011]
[1745580762034,1.37747566,605.77,603.98,0.30382011]
[1745580762234,1.37747566,605.76,603.98,0.30382011]
[1745580762430,1.37747566,605.75,603.98,0.30382011]
[1745580762637,1.37747566,605.74,603.98,0.30382011]
[1745580762838,2.51623866,605.73,603.97,1.0505215]
[1745580763032,1.37747566,605.72,603.97,1.0505215]
[1745580763234,1.37656419,605.71,603.96,1.0505215]
[1745580763431,1.37656419,605.7,603.98,1.184]
[1745580763736,2.51532719,605.69,603.98,1.184]
[1745580763934,1.37656419,605.68,603.98,1.184]
[1745580764135,1.37656419,605.67,603.98,1.184]
[1745580764335,1.37656419,605.66,603.98,1.184]
[1745580764535,1.37656419,605.65,603.98,1.184]
[1745580764737,2.51532719,605.64,603.98,1.184]
[1745580764931,1.37656419,605.63,603.98,1.184]
[1745580765231,1.37656419,605.62,603.98,1.184]
[1745580765433,2.51532719,605.61,603.98,1.184]
[1745580765634,2.51532719,605.6,603.99,0.30383572]
[1745580765840,0.2877674,605.84,603.98,1.184]
[1745580765841,2.51532719,605.59,603.98,1.184]
[1745580766135,1.37656419,605.58,603.98,1.184]
[1745580766335,1.37656419,605.57,603.98,1.184]
[1745580766536,2.51532719,605.56,603.98,1.184]
[1745580766739,1.37656419,605.55,603.98,1.184]
[1745580766942,1.37656419,605.54,603.98,1.184]
[1745580767138,2.51532719,605.53,603.98,1.184]
[1745580767342,1.37656419,605.52,603.98,1.184]
[1745580767543,1.37656419,605.51,603.99,0.898]
[1745580767743,2.51532719,605.5,603.99,0.898]
[1745580767942,2.51532719,605.49,603.99,0.898]
[1745580768242,1.37656419,605.48,603.99,0.898]
[1745580768538,2.51532719,605.47,603.99,0.898]
[1745580768744,1.37644284,605.46,603.99,0.898]
[1745580769043,1.37644284,605.45,603.99,0.898]
[1745580769242,1.37644284,605.44,603.99,0.898]
[1745580769444,1.138763,605.43,603.99,0.898]
[1745580769644,1.37644284,605.42,603.99,0.898]
[1745580769943,2.51520584,605.41,603.99,0.898]
[1745580770138,2.51520584,605.4,603.99,0.898]
[1745580770343,1.37644284,605.39,603.99,0.898]
[1745580770543,1.37636866,605.38,603.99,0.898]
[1745580770845,1.37636877,605.37,603.99,0.898]
[1745580771042,2.51513177,605.36,603.99,0.898]
[1745580771243,1.37636877,605.35,603.99,0.898]
[1745580771441,2.51513177,605.34,603.99,0.898]
[1745580771641,1.37636877,605.33,603.99,0.898]
[1745580771843,1.37636877,605.32,603.99,0.898]
[1745580772044,2.51513177,605.31,603.99,0.898]
[1745580772243,1.37636877,605.3,603.99,0.898]
[1745580772445,1.37636877,605.29,603.99,0.898]
[1745580772648,1.37636877,605.28,603.99,0.898]
[1745580772847,1.37636877,605.27,604.0,0.30379529]
[1745580773046,2.51513177,605.26,604.0,0.30379529]
[1745580773247,2.51513177,605.25,604.0,0.30379529]
[1745580773443,1.37636877,605.24,604.0,0.30379529]
[1745580773648,1.37636877,605.23,604.01,1.261]
[1745580773850,1.37636877,605.22,604.01,1.261]
[1745580774148,1.37636877,605.21,604.01,1.261]
[1745580774348,1.37636877,605.2,604.01,1.261]
[1745580774544,1.37636877,605.19,604.01,1.261]
[1745580774750,1.37636877,605.18,604.01,1.261]
[1745580775048,1.37636877,605.17,604.01,1.261]
[1745580775249,2.51513177,605.16,604.01,1.261]
[1745580775443,1.37636877,605.15,604.01,1.261]
[1745580775648,1.37636877,605.14,604.01,1.261]
[1745580775945,1.37636877,605.13,604.01,1.261]
[1745580776150,2.51513177,605.12,604.01,1.261]
[1745580776448,2.51513177,605.11,604.01,1.261]
[1745580776651,1.37636877,605.1,604.01,1.261]
[1745580776950,2.51513177,605.09,603.99,0.2877912]
[1745580777152,2.5142003,605.08,604.0,0.3037992]
[1745580777350,1.3754373,605.07,603.99,0.2877912]
[1745580777544,1.3754373,605.06,603.99,0.2877912]
[1745580777745,2.5142003,605.05,604.0,0.30379845]
[1745580777948,1.3754373,605.04,604.0,0.30379845]
[1745580778151,2.51418181,605.03,604.0,0.30379845]
[1745580778451,1.37541881,605.02,604.0,0.30379845]
[1745580778651,1.37541881,605.01,604.01,0.30379497]
[1745580778851,1.25820987,606.57,604.0,0.30379497]
[1745580778852,2.51418181,605.0,604.0,0.30379497]
[1745580779050,1.37541881,604.99,604.01,0.30379497]
[1745580779251,2.51418181,604.98,604.0,0.30379497]
[1745580779444,1.37541881,604.97,603.99,0.28781738]
[1745580779645,1.37541881,604.96,604.0,0.30379497]
[1745580779949,2.51418181,604.95,604.0,0.30379497]
[1745580780151,1.37541881,604.94,604.0,0.30379497]
[1745580780354,1.138763,604.93,604.0,0.30379497]
[1745580780648,1.37541881,604.92,604.0,0.30379497]
[1745580780953,2.51418181,604.91,604.0,0.30379497]
[1745580781154,1.37541881,604.9,604.02,1.0505215]
[1745580781349,1.3752469,604.89,604.02,1.0505215]
[1745580781554,1.3752469,604.88,604.03,0.30383652]
[1745580781854,2.5140099,604.87,604.03,0.30383652]
[1745580782053,1.3752469,604.86,604.02,1.0505215]
[1745580782249,1.3752469,604.85,604.02,1.0505215]
[1745580782547,2.5140099,604.84,604.02,1.0505215]
[1745580782751,2.5140099,604.83,604.02,1.0505215]
[1745580782949,2.5140099,604.82,604.02,1.0505215]
[1745580783155,1.3752469,604.81,604.02,1.0505215]
[1745580783453,2.5140099,604.8,604.02,1.0505215]
[1745580783654,1.3752469,604.79,604.02,1.0505215]
[1745580783849,2.5140099,604.78,603.99,0.28781738]
[1745580784054,1.3752469,604.77,603.99,0.28781738]
[1745580784257,1.3752469,604.76,603.99,0.28781738]
[1745580784455,1.3752469,604.75,604.0,1.244]
[1745580784648,1.3752469,604.74,604.0,2.639]
[1745580784853,1.3752469,604.73,604.01,0.907]
[1745580785051,1.3752469,604.72,604.01,0.907]
[1745580785350,1.3752469,604.71,604.01,0.907]
[1745580785550,1.3752469,604.7,604.01,0.907]
[1745580785752,2.5140099,604.69,604.01,0.907]
[1745580785952,1.3752469,604.68,604.01,0.907]
[1745580786150,2.5140099,604.67,604.01,0.907]
[1745580786349,1.3752469,604.66,604.01,0.907]
[1745580786553,1.3752469,604.65,604.01,0.907]
[1745580786755,2.5140099,604.64,604.01,0.907]
[1745580787054,2.5140099,604.63,604.01,0.907]
[1745580787255,2.5140099,604.62,604.01,0.907]
[1745580787453,2.5140099,604.61,604.01,0.907]
[1745580787755,1.3752469,604.6,604.01,0.907]
[1745580787955,2.5140099,604.59,604.01,0.907]
[1745580788156,1.3752469,604.58,604.01,0.907]
[1745580788356,1.3752469,604.57,604.01,0.907]
[1745580788558,2.5140099,604.56,604.01,0.907]
[1745580788856,1.3752469,604.55,604.01,0.907]
[1745580789057,1.3752469,604.54,604.01,0.907]
[1745580789258,2.5140099,604.53,604.01,0.907]
[1745580789458,1.3752469,604.52,604.01,0.907]
[1745580789754,1.3752469,604.51,604.01,0.907]
[1745580790061,2.5140099,604.5,604.01,0.907]
[1745580790260,1.3752469,604.49,604.01,0.907]
[1745580790457,1.37324205,604.48,604.01,0.907]
[1745580790653,1.37324205,604.47,604.01,0.907]
[1745580790857,1.37324205,604.46,604.01,0.907]
[1745580791357,1.138763,604.45,604.01,0.907]
[1745580791754,1.138763,604.44,604.01,0.907]
[1745580792774,1.138763,604.43,604.01,0.907]
[1745580793157,1.37256386,604.42,604.01,0.907]
[1745580793360,1.138763,604.41,604.01,0.907]
[1745580793560,1.138763,604.4,604.01,0.907]
[1745580794762,1.138763,604.39,604.01,0.907]
[1745580794962,1.138763,604.38,604.01,0.907]
[1745580795462,1.25820987,606.09,604.01,0.907]
[1745580795463,1.138763,604.37,604.01,0.907]
[1745580796062,1.138763,604.36,604.01,0.907]
[1745580796662,1.138763,604.35,604.01,0.907]
[1745580796959,1.25820987,606.25,604.01,0.907]
[1745580796960,1.138763,604.34,604.01,0.907]
[1745580797665,1.138763,604.33,604.01,0.907]
[1745580797964,1.25820987,606.25,604.01,0.907]
[1745580797965,1.138763,604.32,604.01,0.907]
[1745580798560,1.138763,604.31,604.01,0.907]
[1745580799066,1.138763,604.3,604.01,0.907]
[1745580799869,1.138763,604.29,604.01,0.907]
[1745580800570,1.138763,604.28,604.01,0.907]
[1745580800966,1.138763,604.27,604.01,0.907]
[1745580801367,1.138763,604.26,604.01,0.907]
[1745580801768,1.138763,604.25,604.01,0.907]